bitfinex/quotes_ETHUSD_20220219
["timestamp","ask_amount","ask_price","bid_price","bid_amount"]
[1645289978881,0.92169958,2753.1,2752.9,0.51382688]
[1645289979379,0.01280958,2753.1,2752.9,0.51382688]
[1645289979580,0.90881,2753.3,2752.9,0.51382688]
[1645289979976,0.00320265,2753.1,2752.9,0.51382688]
[1645289980780,0.90881,2753.3,2752.9,0.51382688]
[1645289981183,0.00320265,2753.1,2752.9,0.51382688]
[1645289981923,0.91209265,2753.1,2752.9,0.51382688]
[1645289982120,0.90889,2753.1,2752.9,0.51382688]
[1645289982320,0.91187318,2753.1,2752.9,0.51382688]
[1645289983320,0.90889,2753.1,2752.9,0.51382688]
[1645289983523,0.91187318,2753.1,2752.9,0.51382688]
[1645289984423,0.90889,2753.1,2752.9,0.51382688]
[1645289984823,0.91187318,2753.1,2752.9,0.51382688]
[1645289985677,0.90889,2753.1,2752.9,0.51382688]
[1645289985876,0.91187318,2753.1,2752.9,0.51382688]
[1645289986477,0.91187318,2753.1,2752.0,0.90888]
[1645289986780,0.91187318,2753.1,2751.6,0.1816]
[1645289986781,0.9091,2752.6,2751.6,0.1816]
[1645289987577,0.9091,2752.6,2751.9,0.67109782]
[1645289987782,1.81826,2752.6,2751.9,0.67109782]
[1645289987978,0.9091,2752.6,2751.9,0.67109782]
[1645289988378,0.00299831,2752.4,2751.9,0.67109782]
[1645289988579,0.91211831,2752.4,2751.9,0.67109782]
[1645289988786,3.5,2752.3,2750.9,2.13021]
[1645289988982,4.409253,2752.3,2751.0,1.54401404]
[1645289989221,1.0,2752.2,2750.7,1.54401404]
[1645289989425,0.909253,2752.3,2750.7,1.54401404]
[1645289989626,0.00299819,2752.1,2750.6,6.97308]
[1645289989828,0.90929,2752.0,2751.4,0.57848821]
[1645289990421,0.90929,2752.0,2750.6,6.97308]
[1645289990624,3.5,2751.9,2750.6,1.81838]
[1645289990821,0.9093322,2752.1,2750.6,1.81838]
[1645289990822,4.4093322,2752.1,2750.6,1.81838]
[1645289991024,0.90927,2752.0,2750.6,2.7276174]
[1645289991226,0.00299726,2752.1,2752.0,1.64687551]
[1645289991824,0.94955796,2752.5,2752.0,1.64687551]
[1645289992025,1.0,2752.8,2752.0,1.64687551]
[1645289992026,0.00299744,2752.2,2752.0,1.64687551]
[1645289992423,0.00299744,2752.2,2752.1,0.52296548]
[1645289992823,0.01198795,2752.6,2752.1,0.52296548]
[1645289993079,1.3,2752.9,2752.1,0.52296548]
[1645289993269,0.00299739,2752.3,2752.1,0.52296548]
[1645289993667,0.00299739,2752.3,2752.1,0.36515548]
[1645289994076,0.94950807,2753.0,2752.1,0.36515548]
[1645289994272,1.85842807,2753.0,2752.1,0.36515548]
[1645289994472,0.00299745,2752.3,2752.1,0.36515548]
[1645289995268,2.81806,2752.9,2752.1,0.36515548]
[1645289995569,0.00299745,2752.3,2752.1,0.36515548]
[1645289996578,3.5,2753.4,2752.1,0.36515548]
[1645289996830,0.00299745,2752.3,2752.1,0.36515548]
[1645289997928,0.00299744,2752.3,2752.1,0.36515548]
[1645289998128,4.37388019,2753.4,2752.1,0.36515548]
[1645289998329,0.90892,2753.0,2752.1,0.36515548]
[1645290000132,0.90892,2753.0,2752.1,0.33120548]
[1645290001703,0.90892,2753.0,2752.4,0.00320249]
[1645290001704,0.00320188,2752.9,2752.4,0.00320249]
[1645290002098,0.90899,2752.8,2752.4,0.00320249]
[1645290002498,0.90899,2752.8,2752.1,0.33120548]
[1645290002899,0.90899,2752.8,2752.5,0.00297216]
[1645290003500,0.90899,2752.8,2752.6,0.61515089]
[1645290003799,0.90899,2752.8,2752.0,1.64687551]
[1645290004229,0.90899,2752.8,2752.5,0.00297214]
[1645290004424,0.90899,2752.8,2752.6,0.08191707]
[1645290004826,0.90899,2752.8,2752.5,0.00297214]
[1645290005029,0.90899,2752.8,2752.4,0.53394419]
[1645290005227,0.00276038,2752.9,2752.5,0.00276077]
[1645290005827,0.00276038,2752.9,2752.4,0.33670496]
[1645290006025,0.00276038,2752.9,2752.8,0.08191707]
[1645290006227,8.26932371,2753.3,2752.4,0.33670496]
[1645290006427,0.94932371,2753.3,2752.4,0.33670496]
[1645290006833,1.85813371,2753.3,2752.4,0.33670496]
[1645290007129,1.81798,2753.1,2752.4,0.33670496]
[1645290007527,1.81798,2753.1,2752.8,0.08191707]
[1645290007728,0.00159477,2753.0,2752.4,0.33670496]
[1645290008373,0.91058477,2753.0,2752.4,0.33670496]
[1645290008675,0.90899,2753.0,2752.4,0.33670496]
[1645290008874,0.00299486,2752.9,2752.4,0.33970036]
[1645290009073,0.00299486,2752.9,2752.7,0.08191707]
[1645290009274,0.00299486,2752.9,2752.4,0.33970036]
[1645290009976,0.00299483,2752.9,2752.4,0.33970033]
[1645290010176,0.00299483,2752.9,2752.4,0.30488949]
[1645290010373,0.9090228,2753.0,2752.4,0.30488949]
[1645290010374,0.71201763,2753.0,2752.4,0.30488949]
[1645290010576,0.90902,2752.8,2752.4,0.30488949]
[1645290010975,0.90902,2752.8,2752.4,0.30189412]
[1645290011177,0.90902,2752.8,2752.0,1.64687551]
[1645290011377,0.90902,2752.8,2752.1,1.54370356]
[1645290011825,0.90902,2752.8,2752.0,1.64687551]
[1645290012030,0.90902,2752.8,2752.4,0.08191707]
[1645290012225,0.90902,2752.8,2752.5,0.60348116]
[1645290012824,0.90902,2752.8,2752.0,1.64687551]
[1645290013327,0.90913,2752.6,2752.0,1.64687551]
[1645290013526,0.9091675,2752.5,2752.0,1.64687551]
[1645290013725,0.9091675,2752.5,2752.3,0.08331972]
[1645290013927,0.9091675,2752.5,2752.0,1.64687551]
[1645290013928,4.54386014,2752.4,2752.0,1.64687551]
[1645290014126,0.524,2752.3,2752.0,1.64687551]
[1645290014328,0.90929,2752.1,2752.0,1.64687551]
[1645290014530,4.40929,2752.1,2752.0,1.64687551]
[1645290014728,5.49540616,2752.1,2752.0,1.64687551]
[1645290015124,5.49540616,2752.1,2752.0,1.72879258]
[1645290015573,0.90946,2751.9,2750.7,1.1421]
[1645290015777,0.90946,2751.9,2750.1,12.03841016]
[1645290015778,0.90949,2751.4,2750.8,1.5442867]
[1645290015978,0.90949,2751.4,2749.9,4.59902028]
[1645290015979,4.024,2751.3,2749.9,4.59902028]
[1645290016179,4.024,2751.3,2750.0,1.5445195]
[1645290016180,4.11011616,2751.3,2750.0,1.5445195]
[1645290016377,1.0,2751.2,2750.0,1.5445195]
[1645290016575,1.0,2751.2,2750.1,1.5445195]
[1645290016774,1.0,2751.2,2749.8,0.00898946]
[1645290016775,0.90972,2750.8,2750.2,2.09588009]
[1645290016975,0.90972,2750.8,2750.3,1.5445195]
[1645290017183,0.90978,2750.7,2750.4,1.5445195]
[1645290017376,0.524,2750.6,2749.8,0.00898946]
[1645290017575,0.524,2750.6,2749.9,1.54473636]
[1645290017774,0.61011616,2750.6,2749.9,1.49473636]
[1645290017974,0.08611616,2750.5,2749.8,0.00898946]
[1645290018175,0.61011616,2750.5,2750.0,0.54572297]
[1645290018376,0.61011616,2750.5,2750.1,0.0032058]
[1645290018577,2.42979286,2750.5,2750.1,0.0032058]
[1645290018778,0.3,2750.4,2750.1,0.0032058]
[1645290018979,0.524,2750.3,2750.1,0.0032058]
[1645290019236,1.524,2750.4,2750.1,0.0032058]
[1645290019426,0.51987273,2750.3,2749.8,0.00898946]
[1645290019627,1.03974546,2750.3,2750.1,0.00320583]
[1645290019832,1.94955546,2750.3,2750.1,0.00320583]
[1645290020028,9.61618,2750.2,2750.1,0.00320583]
[1645290020628,10.61618,2750.2,2749.8,0.00898946]
[1645290020927,1.0,2750.1,2750.0,0.00320585]
[1645290021127,2.81998,2750.1,2750.0,0.00320585]
[1645290021326,2.81998,2750.1,2749.5,0.15672064]
[1645290021926,2.81998,2750.1,2748.8,0.00305097]
[1645290022226,2.81998,2750.1,2748.6,0.86472028]
[1645290022227,0.90997,2749.8,2748.6,0.18475097]
[1645290022432,3.7299455,2750.1,2749.8,0.73800136]
[1645290022990,3.7299455,2750.1,2748.7,0.00305097]
[1645290022991,3.96543,2749.8,2748.7,0.00305097]
[1645290023187,0.91025,2749.6,2748.7,0.00305097]
[1645290023384,0.524,2749.5,2748.8,0.01282866]
[1645290023788,3.361,2749.4,2748.8,0.01282866]
[1645290023984,0.524,2749.3,2748.8,0.01282866]
[1645290024185,0.524,2749.3,2748.4,0.63882564]
[1645290024186,0.54213813,2749.2,2748.4,0.63882564]
[1645290024383,0.524,2749.1,2749.0,4.5e-05]
[1645290024589,1.43437,2749.1,2749.0,4.5e-05]
[1645290024784,1.43437,2749.1,2747.8,0.00305097]
[1645290024785,8.01049,2749.0,2747.8,0.00305097]
[1645290024989,8.01049,2749.0,2747.3,4.45022028]
[1645290024990,5.845,2748.9,2747.6,0.00305097]
[1645290025185,5.845,2748.9,2747.4,0.18495097]
[1645290025186,2.7315,2748.8,2747.4,0.18495097]
[1645290025386,5.324,2748.7,2747.4,0.18495097]
[1645290025585,5.324,2748.7,2747.4,0.60775859]
[1645290025586,0.54160034,2748.2,2747.4,0.60775859]
[1645290026187,0.6907,2748.0,2747.4,0.60775859]
[1645290027227,0.6907,2748.0,2747.4,0.00305097]
[1645290027431,0.6907,2748.0,2746.8,0.68302028]
[1645290027432,1.6013412,2748.0,2746.8,0.68302028]
[1645290027631,0.9107,2747.7,2746.9,0.00305097]
[1645290027825,0.9107,2747.7,2746.7,0.68302028]
[1645290028026,0.9107,2747.7,2746.6,0.00305097]
[1645290028027,0.9107,2747.7,2746.8,0.91367097]
[1645290028226,0.9107,2747.7,2747.3,0.54236874]
[1645290028628,0.91058,2747.9,2747.3,0.54236874]
[1645290028824,0.91058,2747.9,2747.3,0.54541971]
[1645290029027,0.91058,2747.9,2747.3,0.54221103]
[1645290029226,0.91058,2747.9,2747.3,0.00305097]
[1645290029428,3.5,2747.8,2747.5,0.00320858]
[1645290029831,5.0,2747.6,2747.1,0.01283623]
[1645290030031,5.0,2747.6,2746.6,0.00305097]
[1645290030032,0.51987273,2747.2,2746.6,0.00305097]
[1645290030230,0.53458208,2746.6,2746.0,0.00305097]
[1645290030497,0.53458208,2746.6,2745.9,0.00305097]
[1645290030498,0.524,2746.6,2745.9,0.00305097]
[1645290030697,2.73392,2747.0,2745.9,0.00305097]
[1645290030698,2.73392,2747.0,2746.6,1.572]
[1645290030897,7.2722,2746.9,2746.6,1.572]
[1645290031298,2.8224319,2746.8,2746.6,1.572]
[1645290031500,0.524,2746.7,2746.6,1.572]
[1645290031699,0.524,2746.7,2746.6,1.0258377]
[1645290031700,1.14396314,2746.7,2746.6,1.0258377]
[1645290031897,1.14396314,2746.7,2746.6,0.4778377]
[1645290032501,1.14396314,2746.7,2745.7,0.01683447]
[1645290032700,0.91137,2746.4,2745.7,0.0137835]
[1645290032904,0.91137,2746.4,2746.1,0.01284931]
[1645290032905,1.43537,2746.4,2746.1,0.01284931]
[1645290033306,1.0095979,2746.3,2746.1,4.931e-05]
[1645290033504,8.47146834,2746.2,2745.7,0.0137835]
[1645290033706,10.8464945,2746.2,2745.7,0.0137835]
[1645290033900,1.91161,2746.1,2745.7,0.0137835]
[1645290034105,0.54895,2746.0,2745.7,0.0137835]
[1645290034528,0.54895,2746.0,2745.6,0.0007835]
[1645290034529,0.524,2746.0,2745.6,0.0007835]
[1645290034731,0.62231883,2745.7,2745.6,0.0007835]
[1645290034934,0.62231883,2745.7,2744.7,0.05852697]
[1645290034935,8.0,2745.6,2744.7,0.05852697]
[1645290035132,0.66219997,2745.5,2744.7,0.055476]
[1645290035331,0.51987273,2745.2,2744.7,0.055476]
[1645290035534,0.51987273,2745.2,2744.0,0.0501]
[1645290035535,8.0,2745.0,2744.0,0.0501]
[1645290035730,1.66984,2745.1,2744.0,0.0001]
[1645290035731,0.524,2744.9,2744.0,0.0001]
[1645290035929,1.82359,2745.0,2744.9,0.43649808]
[1645290036129,1.03974546,2745.2,2744.9,0.43649808]
[1645290036730,0.02618959,2745.6,2745.3,1.73535837]
[1645290036929,0.02618959,2745.6,2745.4,0.63375692]
[1645290037831,0.02618959,2745.6,2745.4,0.63702597]
[1645290038684,0.02618959,2745.6,2745.4,0.63375692]
[1645290038886,0.02618959,2745.6,2745.4,0.63702597]
[1645290039783,0.02618959,2745.6,2745.4,0.63375692]
[1645290040182,0.02618959,2745.6,2745.4,0.63702597]
[1645290041183,0.02618959,2745.6,2745.4,0.63375692]
[1645290041384,0.02618959,2745.6,2745.4,0.63702597]
[1645290041840,0.02618959,2745.6,2745.4,0.00326905]
[1645290042241,0.02618959,2745.6,2745.3,1.73535837]
[1645290042438,0.02618959,2745.8,2745.3,1.73535837]
[1645290042439,0.91135,2745.7,2745.3,1.73535837]
[1645290042738,0.91135,2745.7,2745.4,0.00133287]
[1645290043647,0.91135,2745.7,2745.4,0.00133284]
[1645290043648,0.524,2745.6,2745.4,0.00133284]
[1645290044441,0.61011616,2745.6,2745.4,0.00133284]
[1645290044742,0.61011616,2745.6,2745.3,1.73535837]
[1645290044943,0.524,2745.6,2745.4,0.00133287]
[1645290045140,0.08611616,2745.5,2745.4,0.00133287]
[1645290045341,1.524,2745.5,2745.4,0.00133287]
[1645290045587,1.524,2745.5,2745.0,0.00838324]
[1645290045588,0.91177,2745.1,2745.0,0.00838324]
[1645290045782,0.91177,2745.1,2744.9,0.43649808]
[1645290045783,1.0,2745.1,2744.9,0.43649808]
[1645290045979,1.12069253,2745.0,2744.9,0.43649808]
[1645290047181,1.12069253,2745.0,2744.9,0.33649808]
[1645290047380,1.12069253,2745.0,2744.9,0.28649808]
[1645290048284,8.34375243,2745.0,2744.9,0.28649808]
[1645290048484,7.7470599,2745.0,2744.9,0.28649808]
[1645290048687,3.92137774,2745.0,2744.9,0.28649808]
[1645290049230,4.39582293,2745.6,2745.0,7.0]
[1645290049231,1.13653293,2745.6,2745.0,7.0]
[1645290049432,1.13653293,2745.6,2745.1,4.04298017]
[1645290049632,0.18448573,2745.6,2745.1,0.72508017]
[1645290050129,0.18448573,2745.6,2745.1,1.63621017]
[1645290050328,0.18448573,2745.6,2745.1,0.72508017]
[1645290050529,0.18448573,2745.6,2745.1,0.54298017]
[1645290050933,0.18448573,2745.6,2745.2,0.00326629]
[1645290051928,0.18448573,2745.6,2745.1,0.54603114]
[1645290052134,0.02171214,2745.7,2745.3,0.00326626]
[1645290052331,0.02171214,2745.7,2745.4,6.5]
[1645290052534,0.02945467,2746.3,2745.5,8.524]
[1645290052736,0.02945467,2746.3,2745.6,8.5]
[1645290052980,0.02945467,2746.3,2745.7,2.34587]
[1645290053185,0.02945467,2746.3,2745.7,2.34892097]
[1645290053186,0.02618959,2746.3,2745.7,2.34892097]
[1645290053379,0.02945506,2746.3,2745.7,2.34892097]
[1645290053779,0.02945506,2746.3,2745.8,0.69291273]
[1645290053982,0.02945506,2746.3,2745.9,0.524]
[1645290054380,0.02618959,2746.3,2745.9,0.524]
[1645290054579,0.02945517,2746.3,2745.9,0.524]
[1645290055182,0.02945517,2746.3,2745.9,1.43486]
[1645290055580,0.02618959,2746.3,2745.9,1.43486]
[1645290055780,0.02945517,2746.3,2745.9,1.43486]
[1645290056383,0.02945517,2746.3,2745.9,0.524]
[1645290056828,0.02618959,2746.3,2745.9,0.524]
[1645290057031,0.02945517,2746.3,2745.9,0.524]
[1645290057732,0.02945517,2746.3,2745.8,0.6959637]
[1645290058029,0.02618959,2746.3,2745.9,1.54688546]
[1645290058230,0.02618959,2746.3,2745.8,1.1339637]
[1645290058231,0.02945517,2746.3,2745.8,1.1339637]
[1645290058630,0.02945517,2746.3,2745.9,4.79690635]
[1645290058837,0.02945517,2746.3,2745.8,1.1339637]
[1645290059030,0.02945517,2746.3,2745.8,4.6339637]
[1645290059230,0.02618959,2746.3,2745.8,4.6339637]
[1645290059433,0.02945517,2746.3,2745.9,0.911]
[1645290059633,0.07914807,2746.8,2746.4,0.05891033]
[1645290059832,0.07914807,2746.8,2746.4,0.96959033]
[1645290060036,0.07914807,2746.8,2746.4,0.05891033]
[1645290060234,0.07914807,2746.8,2746.4,0.59695615]
[1645290061290,1.97975685,2746.9,2746.8,0.15829613]
[1645290061505,0.15771685,2746.9,2746.8,0.15829613]
[1645290062490,1.95965997,2747.7,2746.8,0.15829613]
[1645290062491,0.91074,2747.5,2746.8,0.15829613]
[1645290062689,0.91074,2747.5,2746.8,0.1613471]
[1645290062690,0.98988808,2747.5,2746.8,0.1613471]
[1645290062890,0.98988808,2747.5,2747.3,0.71595083]
[1645290063896,0.07914808,2747.5,2747.3,0.71595083]
[1645290064095,0.07914808,2747.5,2747.3,1.61925083]
[1645290065142,0.07914808,2747.5,2747.3,1.46925083]
[1645290065845,2.05868424,2748.1,2747.4,8.0]
[1645290066148,2.05868424,2748.1,2747.5,0.438]
[1645290066149,0.23744424,2748.1,2747.5,0.438]
[1645290066343,0.23744424,2748.1,2747.6,0.1819]
[1645290066541,0.23744424,2748.1,2747.6,0.6199]
[1645290066748,0.00326203,2747.9,2747.6,0.438]
[1645290066942,0.08241011,2748.1,2747.7,8.0]
[1645290067144,1.83339066,2749.5,2747.8,0.6426]
[1645290067348,1.83339066,2749.5,2747.7,0.68302028]
[1645290067349,7.15804066,2749.5,2747.7,0.68302028]
[1645290067540,7.15804066,2749.5,2747.5,0.86492028]
[1645290067740,0.438,2749.4,2747.5,0.1819]
[1645290067978,0.07914808,2748.5,2748.4,0.70261255]
[1645290068180,0.07914808,2748.5,2747.5,0.86492028]
[1645290068384,0.07914808,2748.5,2747.5,0.1819]
[1645290069582,0.98964808,2748.5,2747.8,0.53326495]
[1645290069984,0.9105897,2748.3,2747.8,0.53326495]
[1645290070185,2.81085328,2748.5,2747.8,0.53326495]
[1645290070186,0.98964808,2748.5,2747.8,0.53326495]
[1645290070484,0.07914808,2748.5,2747.8,0.53326495]
[1645290071284,0.07914808,2748.5,2747.8,2.12663523]
[1645290071485,0.07914808,2748.5,2748.4,0.67540877]
[1645290071739,0.07914808,2748.5,2747.7,1.8206]
[1645290071937,0.07914808,2748.5,2747.5,0.1819]
[1645290071938,0.98950808,2748.5,2747.5,0.1819]
[1645290072135,0.98950808,2748.5,2747.3,0.3638]
[1645290072335,0.98950808,2748.5,2746.8,0.1613471]
[1645290072336,0.01280402,2748.0,2746.8,0.1613471]
[1645290072533,0.438,2747.9,2746.8,0.15829613]
[1645290072733,0.438,2747.9,2747.3,0.59321737]
[1645290072734,0.738,2747.9,2747.3,0.59321737]
[1645290072932,0.91092,2747.7,2747.3,0.59321737]
[1645290073332,1.82184,2747.7,2747.3,0.59321737]
[1645290073531,0.91092,2747.7,2747.3,0.59321737]
[1645290074741,0.00302728,2748.0,2747.3,0.59321737]
[1645290074938,0.09426849,2748.5,2747.3,0.59321737]
[1645290075136,0.95106129,2748.3,2747.3,0.59321737]
[1645290075333,0.00302728,2748.0,2747.3,0.59321737]
[1645290075783,0.00302728,2748.0,2747.9,0.63202023]
[1645290075984,0.00302728,2748.0,2747.2,0.1819]
[1645290075985,0.91355728,2748.0,2747.2,0.1819]
[1645290076186,0.91355728,2748.0,2747.1,0.91056]
[1645290076187,0.91053,2748.0,2747.1,0.91056]
[1645290076586,0.93671959,2748.0,2747.2,0.1319]
[1645290077090,0.93671959,2748.0,2747.8,0.54549631]
[1645290077687,1.01890804,2748.0,2747.8,0.49549631]
[1645290078487,1.01586767,2748.0,2747.2,0.1319]
[1645290078986,1.09501575,2748.0,2747.2,0.1319]
[1645290079731,1.09501575,2748.0,2747.8,0.59072539]
[1645290080631,0.18448575,2748.0,2747.8,0.59072539]
[1645290081228,0.18774027,2748.0,2747.8,0.59072539]
[1645290081428,1.09829027,2748.0,2747.8,0.59072539]
[1645290082235,1.09503575,2748.0,2747.8,0.59072539]
[1645290082434,1.11474418,2748.0,2747.8,0.59072539]
[1645290083289,1.11148966,2748.0,2747.8,0.59072539]
[1645290083488,1.11148966,2748.0,2747.2,0.1319]
[1645290083691,0.91065,2747.8,2747.2,0.1319]
[1645290084687,0.91065,2747.8,2747.6,0.68249808]
[1645290087437,0.10533767,2747.9,2747.6,0.68249808]
[1645290087733,0.18448575,2747.9,2747.6,0.68249808]
[1645290088533,0.18448575,2747.9,2746.8,0.15829613]
[1645290088741,0.91086,2747.6,2746.8,0.15829613]
[1645290089136,0.5764,2747.5,2746.8,0.15829613]
[1645290089332,0.05013,2747.4,2746.8,0.15829613]
[1645290089533,0.65524211,2747.4,2746.8,0.15829613]
[1645290090334,1.82216,2747.3,2746.8,0.15829613]
[1645290090585,0.91109,2747.3,2746.8,0.15829613]
[1645290091288,0.9108775,2747.2,2746.8,0.15829613]
[1645290091787,1.82188,2747.1,2746.8,0.15829613]
[1645290094088,0.91093,2747.2,2746.8,0.07914805]
[1645290095250,0.86093,2747.2,2746.8,0.07914805]
[1645290095846,2.30544567,2747.2,2746.8,0.07914805]
[1645290096047,1.82185,2747.1,2746.8,0.07914805]
[1645290097146,1.83905386,2747.1,2746.8,0.07914805]
[1645290097344,0.910932,2747.0,2746.8,0.07914805]
[1645290098182,0.91092,2746.9,2746.8,0.07914805]
[1645290105792,8.0,2746.8,2746.3,0.01301203]
[1645290105998,1.34914,2746.7,2746.3,0.01301203]
[1645290106197,8.49414,2746.7,2745.8,0.00305097]
[1645290106394,0.48885,2746.6,2745.6,0.00305097]
[1645290106594,0.87456616,2746.6,2745.3,1.54724216]
[1645290106796,0.87456616,2746.6,2745.8,0.70357003]
[1645290106797,0.911445,2746.3,2745.8,0.70357003]
[1645290107002,0.91144,2746.4,2745.9,0.00305097]
[1645290108200,0.91096,2746.6,2745.9,0.00305097]
[1645290108599,0.91096,2746.6,2745.9,1.55005011]
[1645290108798,0.00193069,2746.5,2745.9,0.00305097]
[1645290109237,0.91308069,2746.5,2745.4,0.00305097]
[1645290109439,0.525,2746.4,2745.1,1.55033476]
[1645290109637,0.525,2746.4,2745.2,0.00305097]
[1645290110040,2.41326859,2746.3,2745.6,0.00325305]
[1645290110343,1.43632,2746.2,2745.6,0.00325305]
[1645290110545,1.48695,2746.2,2745.6,0.00325305]
[1645290110743,2.48695,2746.2,2745.2,0.01606512]
[1645290110938,1.71163,2746.2,2745.2,0.00305097]
[1645290111142,2.7347874,2746.0,2745.8,0.00132489]
[1645290111343,2.3482058,2745.9,2745.5,0.59153176]
[1645290111541,0.9115958,2745.9,2745.5,0.59458273]
[1645290111740,0.525,2746.3,2745.5,0.59153176]
[1645290111944,0.05063,2746.5,2745.5,0.59458273]
[1645290112142,0.01483009,2746.4,2745.6,0.00305097]
[1645290112544,1.82235,2746.2,2745.6,0.00305097]
[1645290114287,1.82341774,2746.2,2745.6,0.00305097]
[1645290114489,0.9113,2746.1,2745.6,0.00305097]
[1645290114691,0.9113,2746.1,2745.1,0.00305097]
[1645290114692,0.91137,2745.8,2745.1,0.00305097]
[1645290114886,0.9113759,2745.7,2745.6,0.00131966]
[1645290115088,4.4113759,2745.7,2745.0,0.11240241]
[1645290115287,0.9113759,2745.7,2745.0,0.11240241]
[1645290115486,0.9113759,2745.7,2745.2,0.68634587]
[1645290115697,0.91144,2745.5,2745.2,0.68634587]
[1645290116288,0.91144,2745.5,2745.0,0.10712255]
[1645290116939,0.91144,2745.5,2745.0,0.05712255]
[1645290117141,1.82295,2745.5,2745.0,0.05712255]
[1645290117341,2.73546964,2745.5,2745.0,0.05712255]
[1645290117540,0.9417079,2745.5,2745.0,0.05712255]
[1645290118138,0.9417079,2745.5,2744.9,0.82945511]
[1645290118338,0.94277564,2745.5,2744.9,0.82945511]
[1645290118544,0.03133564,2745.5,2745.0,1.54733415]
[1645290118740,0.0605358,2745.5,2745.0,1.54733415]
[1645290119537,0.0605358,2745.5,2745.4,0.59294719]
[1645290119538,0.06160354,2745.5,2745.4,0.59294719]
[1645290119738,0.0908037,2745.5,2745.4,0.59294719]
[1645290120342,0.00106774,2745.7,2745.6,0.1816074]
[1645290120602,3.30666774,2746.5,2745.6,0.8315074]
[1645290120603,0.00106774,2746.5,2745.6,0.8315074]
[1645290120791,0.00106774,2746.5,2745.6,5.8315074]
[1645290120993,0.003255,2746.2,2745.7,1.54692324]
[1645290121495,0.003255,2746.2,2745.7,3.36867324]
[1645290121691,0.003255,2746.2,2745.8,1.54692324]
[1645290121895,0.00106774,2746.5,2745.6,0.1816074]
[1645290122593,0.525,2746.4,2745.6,0.1816074]
[1645290122798,0.91111,2746.2,2745.6,0.1816074]
[1645290122992,1.6112539,2746.1,2745.6,0.1816074]
[1645290123591,1.6112539,2746.1,2744.9,0.26810548]
[1645290123592,0.6998,2746.1,2744.9,0.26810548]
[1645290123796,0.57781397,2745.9,2745.0,0.55483861]
[1645290123992,0.91141,2745.7,2745.1,1.54727603]
[1645290124241,0.91141,2745.7,2745.0,0.55483861]
[1645290124242,1.8228263,2745.7,2745.0,0.55483861]
[1645290124439,0.9114163,2745.7,2745.3,0.00325604]
[1645290124843,1.82281,2745.8,2745.3,0.00325604]
[1645290125440,1.82281,2745.8,2745.1,1.54729808]
[1645290125743,1.82281,2745.8,2745.4,0.00325599]
[1645290126543,1.82081,2745.8,2745.0,0.55483861]
[1645290126741,0.94259564,2745.9,2745.0,0.55483861]
[1645290126941,0.94259564,2745.9,2745.5,0.00325597]
[1645290127341,0.9717958,2745.9,2745.5,0.00325597]
[1645290127742,0.9717958,2745.9,2745.1,0.9112]
[1645290128183,0.9717958,2745.9,2745.6,0.00325592]
[1645290128389,0.0605358,2745.9,2745.7,0.60500742]
[1645290128991,0.0605358,2745.9,2745.5,0.91104]
[1645290129187,0.0605358,2745.9,2745.0,1.1588]
[1645290129386,0.0605358,2745.9,2745.7,0.00325587]
[1645290129786,0.91126,2745.8,2745.7,0.00325587]
[1645290130185,0.0605358,2745.9,2745.6,0.50721673]
[1645290130389,0.0605358,2745.9,2745.6,0.51047263]
[1645290130986,0.06160354,2745.9,2745.6,0.51047263]
[1645290131391,0.06160354,2745.9,2745.6,0.50721673]
[1645290132238,0.06160354,2745.9,2745.6,2.32907673]
[1645290132441,0.01229202,2745.8,2745.6,13.35907673]
[1645290132838,0.01229202,2745.8,2745.6,13.36233269]
[1645290133441,0.01229202,2745.8,2745.6,13.31233269]
[1645290133839,0.01229202,2745.8,2745.6,13.30907673]
[1645290134037,0.01229202,2745.8,2745.6,13.31233265]
[1645290134639,0.01229202,2745.8,2745.6,2.28233265]
[1645290135040,0.00106774,2745.9,2745.8,3.5]
[1645290135489,3.91779951,2747.1,2745.8,3.5]
[1645290135687,0.02920016,2745.9,2745.8,3.5]
[1645290136083,0.02920016,2745.9,2745.8,14.53]
[1645290136283,0.95149951,2747.1,2746.1,0.91079]
[1645290136484,0.91082,2747.1,2746.6,0.63585967]
[1645290137282,0.91082,2747.1,2746.6,0.63479193]
[1645290137683,0.00325504,2747.0,2746.6,0.63479193]
[1645290137883,0.00325504,2747.0,2746.0,1.82157]
[1645290138086,0.91092,2746.8,2746.0,1.82157]
[1645290138886,0.00325526,2746.5,2746.0,1.82157]
[1645290139084,0.00325526,2746.5,2746.4,0.71095702]
[1645290139736,0.91084,2747.0,2746.4,0.71095702]
[1645290139932,1.82181,2747.2,2746.4,0.71095702]
[1645290140136,0.00325524,2746.6,2746.4,0.71095702]
[1645290140334,0.00325524,2746.6,2746.3,0.58868943]
[1645290141035,1.08563,2747.1,2746.3,0.58868943]
[1645290141238,1.08563,2747.1,2746.8,0.69184159]
[1645290141839,1.08563,2747.1,2746.2,0.91082]
[1645290142040,1.03563,2747.1,2746.2,0.91082]
[1645290142539,0.00325514,2746.8,2746.2,0.91082]
[1645290143190,0.00325514,2746.8,2746.3,0.62861995]
[1645290143394,0.1248,2747.1,2746.3,0.62861995]
[1645290143591,0.1248,2747.1,2746.4,0.91071]
[1645290143790,0.00325521,2746.6,2746.4,0.91071]
[1645290143991,0.00325521,2746.6,2746.3,0.62861995]
[1645290143992,0.1248,2747.1,2746.6,0.00651042]
[1645290144290,1.03562,2747.1,2746.9,0.68838627]
[1645290146093,0.12805497,2747.1,2746.9,0.68838627]
[1645290146497,0.12805497,2747.1,2746.9,1.21338627]
[1645290146938,0.12805497,2747.1,2747.0,1.54639787]
[1645290147138,0.1248,2747.1,2747.0,1.54639787]
[1645290147350,0.12805497,2747.1,2747.0,1.54639787]
[1645290148337,0.12805497,2747.1,2746.9,1.21338627]
[1645290148338,0.1248,2747.1,2746.9,1.21338627]
[1645290148738,0.02920016,2747.5,2747.0,1.54634722]
[1645290148939,0.02920016,2747.5,2747.0,3.36730722]
[1645290149148,3.1213,2748.7,2747.0,3.36730722]
[1645290149149,7.32,2748.2,2747.2,13.0]
[1645290149342,3.51301175,2748.9,2747.3,2.07134722]
[1645290149542,8.363,2749.2,2747.3,2.07134722]
[1645290149543,6.3746,2749.1,2747.4,1.54634722]
[1645290149745,0.91028,2748.8,2748.1,0.53893326]
[1645290149945,0.91028,2748.8,2747.3,1.43523]
[1645290150142,0.91028,2748.8,2747.4,1.54615873]
[1645290150143,3.5,2748.7,2747.4,1.54615873]
[1645290150344,5.84613,2748.7,2747.2,1.1525]
[1645290150593,0.9106,2748.4,2747.2,1.1525]